bitfinex/quotes_BTCUSD_20260125
["timestamp","ask_amount","ask_price","bid_price","bid_amount"]
[1769379702190,0.03000515,86299.0,86288.0,0.01158909]
[1769379702400,0.14484102,86299.0,86288.0,0.01158909]
[1769379702613,0.14484102,86299.0,86282.0,1.09500064]
[1769379702614,0.11483587,86298.0,86293.0,0.01158842]
[1769379702821,0.03000515,86299.0,86289.0,0.01158896]
[1769379703035,0.11484013,86298.0,86291.0,0.01158869]
[1769379703261,0.03000515,86299.0,86289.0,0.01158896]
[1769379703466,0.03000515,86299.0,86279.0,0.0115903]
[1769379703467,0.00802464,86288.0,86279.0,0.0115903]
[1769379703669,0.95315735,86288.0,86276.0,0.0115907]
[1769379703877,0.95315735,86288.0,86272.0,0.01159124]
[1769379703878,0.94513271,86286.0,86273.0,0.01159111]
[1769379704085,0.13057201,86283.0,86272.0,0.01159124]
[1769379704295,1.07570472,86283.0,86272.0,0.01159124]
[1769379704504,1.07570472,86283.0,86269.0,0.01159164]
[1769379704505,1.07570472,86283.0,86268.0,0.01159178]
[1769379704717,0.13057201,86280.0,86263.0,0.01159245]
[1769379704927,0.94563056,86277.0,86265.0,0.01159218]
[1769379705144,0.13057201,86275.0,86265.0,0.01159218]
[1769379705379,0.13057201,86275.0,86266.0,0.01159205]
[1769379705837,0.13057201,86275.0,86263.0,0.01159245]
[1769379706053,0.13057201,86275.0,86265.0,0.06955255]
[1769379706054,1.07620257,86272.0,86265.0,0.06955255]
[1769379706267,1.07620257,86272.0,86269.0,0.01159164]
[1769379706684,1.07620257,86272.0,86268.0,0.01159178]
[1769379706887,1.07620257,86272.0,86265.0,0.06955295]
[1769379706888,1.07620257,86272.0,86265.0,0.01159218]
[1769379707371,1.07620257,86272.0,86264.0,0.01159232]
[1769379707496,1.07620257,86272.0,86261.0,0.01159272]
[1769379707497,0.94563056,86272.0,86265.0,0.01159218]
[1769379707694,1.07418262,86270.0,86264.0,0.01159232]
[1769379708299,1.07418262,86270.0,86259.0,0.01159299]
[1769379708300,0.01159232,86264.0,86258.0,0.01159312]
[1769379708511,0.13057201,86267.0,86259.0,0.01159299]
[1769379708765,0.13057201,86267.0,86260.0,0.01159285]
[1769379708954,0.13057201,86267.0,86261.0,0.01159272]
[1769379709357,0.13057201,86267.0,86260.0,0.01159285]
[1769379710427,0.13057201,86267.0,86258.0,0.07003038]
[1769379710428,0.13057201,86285.0,86267.0,1.09500064]
[1769379710640,0.94361061,86278.0,86259.0,0.01159299]
[1769379710847,0.0115903,86279.0,86258.0,0.00047177]
[1769379710848,0.13057201,86275.0,86258.0,0.00047177]
[1769379711054,0.13057201,86271.0,86258.0,0.01206489]
[1769379711203,0.94361061,86268.0,86259.0,0.01159299]
[1769379711409,0.0115899,86282.0,86258.0,0.01206489]
[1769379711410,0.94361061,86266.0,86258.0,0.00047177]
[1769379711618,0.94361061,86264.0,86258.0,0.00047177]
[1769379711970,0.94361061,86264.0,86250.0,0.0165942]
[1769379711971,0.13057201,86261.0,86250.0,0.005]
[1769379712196,0.13057201,86257.0,86250.0,0.005]
[1769379712400,1.07418262,86256.0,86250.0,0.005]
[1769379713696,0.00047294,86261.0,86230.0,0.01159689]
[1769379713697,0.005,86250.0,86230.0,0.01159689]
[1769379713898,0.005,86250.0,86222.0,0.00044914]
[1769379713899,0.93976189,86247.0,86235.0,0.01159621]
[1769379714093,0.93976189,86245.0,86235.0,0.01159621]
[1769379714535,0.13057201,86242.0,86234.0,0.01159635]
[1769379714736,0.93976189,86242.0,86233.0,0.0003416]
[1769379714967,0.0115942,86250.0,86233.0,0.0003416]
[1769379714968,0.13057201,86239.0,86233.0,0.0003416]
[1769379715198,0.93942371,86236.0,86229.0,0.0001]
[1769379715400,0.011595,86244.0,86229.0,0.0001]
[1769379715401,1.06999572,86232.0,86229.0,0.0001]
[1769379715598,0.13057201,86232.0,86229.0,0.0001]
[1769379715855,0.83810132,86232.0,86229.0,0.0001]
[1769379716335,0.23188368,86251.0,86224.0,0.0147437]
[1769379716336,0.0001,86229.0,86224.0,0.00314601]
[1769379716539,0.0001,86229.0,86222.0,0.00044914]
[1769379716540,0.70436526,86228.0,86222.0,0.00044914]
[1769379716680,0.13114495,86229.0,86220.0,0.0028922]
[1769379716681,0.70392062,86226.0,86220.0,0.01449043]
[1769379716887,0.13057201,86223.0,86216.0,0.06959207]
[1769379717093,0.13057201,86223.0,86220.0,0.01159823]
[1769379717533,0.8206199,86229.0,86221.0,0.0115981]
[1769379717938,0.00047294,86229.0,86222.0,0.00983753]
[1769379718409,0.13104495,86229.0,86221.0,0.0115981]
[1769379719000,0.13104495,86229.0,86210.0,0.24199085]
[1769379719234,0.80913792,86229.0,86221.0,0.0115981]
[1769379719643,0.13057201,86228.0,86224.0,0.01159769]
[1769379719838,0.67809297,86227.0,86221.0,0.0115981]
[1769379720164,0.02824472,86228.0,86222.0,0.01159796]
[1769379720586,0.02824472,86228.0,86217.0,1.10659928]
[1769379720587,0.01159433,86249.0,86230.0,0.01159689]
[1769379720785,0.43994611,86260.0,86235.0,0.01159621]
[1769379720786,0.13057201,86247.0,86235.0,0.01159621]
[1769379720994,0.13057201,86247.0,86236.0,0.01159608]
[1769379721197,0.80913319,86255.0,86240.0,0.05797773]
[1769379721397,0.80913319,86255.0,86239.0,1.09500064]
[1769379721398,0.80913319,86255.0,86242.0,0.05797581]
[1769379721599,0.80913319,86255.0,86239.0,1.09500064]
[1769379721939,0.67856118,86251.0,86233.0,0.14215544]
[1769379722140,0.13057201,86248.0,86230.0,0.00014139]
[1769379722342,0.01159393,86252.0,86230.0,0.00014139]
[1769379722343,0.67856118,86245.0,86230.0,0.01173828]
[1769379722547,0.13057201,86242.0,86231.0,0.01159675]
[1769379722749,0.13057201,86242.0,86233.0,0.01159648]
[1769379722960,0.13057201,86242.0,86230.0,0.01173828]
[1769379723174,0.80913319,86242.0,86232.0,0.01159662]
[1769379723533,0.80913319,86242.0,86234.0,0.01159635]
[1769379723736,0.231852,86262.0,86239.0,0.01159568]
[1769379723737,0.01159285,86260.0,86239.0,0.01159568]
[1769379723964,0.67856118,86259.0,86242.0,0.01159527]
[1769379724419,0.67856118,86259.0,86244.0,0.011595]
[1769379724607,0.67856118,86259.0,86238.0,0.17728896]
[1769379724608,0.16632535,86261.0,86245.0,0.16569315]
[1769379724839,0.16632535,86261.0,86230.0,0.4400875]
[1769379724840,0.16632535,86261.0,86253.0,0.01159379]
[1769379725208,1.083564,86268.0,86247.0,0.0115946]
[1769379725409,0.16632535,86266.0,86248.0,0.01159447]
[1769379725626,0.02824472,86258.0,86248.0,0.01159447]
[1769379725798,0.02824472,86258.0,86246.0,0.01159474]
[1769379725938,1.083564,86257.0,86246.0,0.01159474]
[1769379726142,1.083564,86257.0,86245.0,0.01159487]
[1769379726396,1.083564,86257.0,86241.0,0.01159541]
[1769379726564,1.083564,86257.0,86244.0,0.011595]
[1769379726763,1.083564,86257.0,86238.0,0.01159581]
[1769379726987,1.083564,86253.0,86239.0,0.01159568]
[1769379727195,1.083564,86253.0,86240.0,0.01159554]
[1769379727390,1.083564,86253.0,86242.0,0.01159527]
[1769379727612,1.083564,86253.0,86237.0,0.06957568]
[1769379727613,1.083564,86253.0,86237.0,0.01159595]
[1769379727767,1.083564,86253.0,86239.0,0.01159568]
[1769379727978,1.083564,86253.0,86237.0,0.06957556]
[1769379728218,1.083564,86253.0,86237.0,0.01159595]
[1769379728419,1.083564,86253.0,86238.0,0.01159581]
[1769379728559,1.083564,86253.0,86239.0,0.01159568]
[1769379728772,1.083564,86253.0,86236.0,0.17728923]
[1769379728773,1.083564,86253.0,86236.0,0.16569315]
[1769379728982,1.083564,86250.0,86233.0,0.01159648]
[1769379729181,1.24988935,86250.0,86233.0,0.01159648]
[1769379729591,0.02824472,86252.0,86237.0,0.16569315]
[1769379729789,0.02824472,86252.0,86237.0,0.1772891]
[1769379729988,0.02824472,86252.0,86239.0,0.01159568]
[1769379730448,0.02824472,86252.0,86240.0,0.01159554]
[1769379731074,0.02824472,86252.0,86237.0,0.01159595]
[1769379731212,0.02824472,86252.0,86238.0,0.16569315]
[1769379731629,1.07712187,86251.0,86238.0,0.16569315]
[1769379731879,1.07712187,86249.0,86233.0,0.01159648]
[1769379732436,1.07712187,86249.0,86234.0,0.01159635]
[1769379732642,1.07712187,86249.0,86229.0,0.06958181]
[1769379732643,0.01159191,86267.0,86248.0,0.01159447]
[1769379732856,0.1779174,86266.0,86247.0,0.0115946]
[1769379733063,0.03512256,86263.0,86248.0,0.01159447]
[1769379733297,0.03512256,86262.0,86248.0,0.01159447]
[1769379733500,0.20144791,86262.0,86249.0,0.01159433]
[1769379733718,0.01159111,86273.0,86254.0,1.1338837]
[1769379733719,0.16632535,86273.0,86254.0,1.1338837]
[1769379733918,0.03512256,86271.0,86255.0,0.06956086]
[1769379734127,0.03512256,86271.0,86254.0,0.01159366]
[1769379734128,0.02824472,86263.0,86254.0,0.01159366]
[1769379734325,0.03512256,86271.0,86239.0,0.23191186]
[1769379734326,0.17791525,86282.0,86263.0,1.12229004]
[1769379734621,0.05829007,86284.0,86261.0,0.17728587]
[1769379734622,0.03512256,86279.0,86261.0,0.16569315]
[1769379734819,0.16632535,86276.0,86257.0,0.01159326]
[1769379735023,0.0115903,86279.0,86257.0,0.01159326]
[1769379735024,0.16632535,86274.0,86257.0,0.01159326]
[1769379735252,0.03512256,86273.0,86258.0,0.01159312]
[1769379735380,0.03512256,86273.0,86257.0,0.01159326]
[1769379735591,0.03512256,86273.0,86252.0,0.06956355]
[1769379735592,0.03512256,86271.0,86252.0,0.06956355]
[1769379735786,0.01159111,86273.0,86252.0,0.06956355]
[1769379735787,0.03512256,86269.0,86252.0,0.06970494]
[1769379736258,0.03512256,86269.0,86254.0,0.01159366]
[1769379736543,0.03512256,86269.0,86253.0,0.01159379]
[1769379736946,0.03512256,86269.0,86254.0,0.01159366]
[1769379737281,0.03512256,86269.0,86253.0,0.01159379]
[1769379737481,0.03512256,86269.0,86256.0,0.01159339]
[1769379737705,0.03512256,86269.0,86257.0,0.01159326]
[1769379737924,0.03512256,86269.0,86256.0,0.01159339]
[1769379738377,0.17901016,86270.0,86253.0,0.01159379]
[1769379738378,0.17901016,86268.0,86253.0,0.01159379]
[1769379738553,0.17901016,86268.0,86256.0,0.01159339]
[1769379738554,0.21413272,86268.0,86256.0,0.01159339]
[1769379738974,0.21413272,86268.0,86257.0,0.01159326]
[1769379739328,0.24237744,86268.0,86257.0,0.01159326]
[1769379740125,0.24237744,86268.0,86254.0,0.01159366]
[1769379740765,0.24237744,86268.0,86255.0,0.01159353]
[1769379740943,0.24237744,86268.0,86256.0,0.01159339]
[1769379741170,0.24237744,86268.0,86257.0,0.01159326]
[1769379741376,0.06336728,86268.0,86257.0,0.01159326]
[1769379741579,0.06336728,86268.0,86256.0,0.01159339]
[1769379741809,0.06336728,86268.0,86255.0,0.01159353]
[1769379742639,0.01896904,86273.0,86255.0,0.01159353]
[1769379742800,0.00035123,86272.0,86255.0,0.01159353]
[1769379743203,0.00035123,86272.0,86257.0,0.01159326]
[1769379743525,0.00035123,86272.0,86258.0,0.01159312]
[1769379744420,0.00035123,86272.0,86257.0,0.01159326]
[1769379744621,0.02824472,86271.0,86257.0,0.01159326]
[1769379744843,0.02824472,86271.0,86258.0,0.01159312]
[1769379745010,0.02824472,86271.0,86256.0,0.01159339]
[1769379745212,0.00035123,86270.0,86258.0,0.001]
[1769379746418,0.00035123,86270.0,86243.0,0.18189422]
[1769379746419,0.01656353,86255.0,86243.0,0.18189422]
[1769379746630,0.01670536,86255.0,86250.0,0.0115942]
[1769379746833,0.01670536,86255.0,86248.0,0.01159447]
[1769379746834,0.00014183,86255.0,86248.0,0.01159447]
[1769379747217,0.00014183,86255.0,86250.0,0.18189422]
[1769379747425,0.00014183,86255.0,86252.0,0.19348815]
[1769379747674,0.00014183,86255.0,86252.0,0.06956339]
[1769379747881,0.00014183,86255.0,86253.0,0.18189422]
[1769379748749,0.02824472,86254.0,86253.0,0.18189422]
[1769379748951,0.00014183,86255.0,86253.0,0.18189422]
[1769379749154,0.00014183,86255.0,86252.0,0.01159393]
[1769379749375,0.00035123,86268.0,86254.0,0.01159366]
[1769379749908,0.00035123,86268.0,86253.0,0.19348801]
[1769379750552,0.00035123,86268.0,86254.0,0.01159366]
[1769379750960,0.12384248,86269.0,86253.0,0.18189422]
[1769379750961,0.00035123,86266.0,86253.0,0.18189422]
[1769379752161,0.00035123,86266.0,86253.0,0.19348801]
[1769379752359,0.00035123,86266.0,86253.0,0.18189422]
[1769379753738,0.00035123,86266.0,86253.0,0.19348801]
[1769379754355,0.02824472,86265.0,86253.0,0.19348801]
[1769379754565,0.02824472,86265.0,86254.0,0.01159366]
[1769379754724,0.02824472,86265.0,86255.0,0.01159353]
[1769379754925,0.02824472,86265.0,86254.0,0.01159366]
[1769379755494,0.02824472,86265.0,86253.0,0.19348801]
[1769379755697,0.02824472,86265.0,86253.0,0.18189422]
[1769379756058,0.02824472,86265.0,86253.0,0.19348801]
[1769379756464,0.02824472,86265.0,86254.0,0.01159366]
[1769379757072,0.02824472,86265.0,86253.0,0.19348801]
[1769379757825,0.44031332,86280.0,86251.0,1.2049293]
[1769379757826,0.0003652,86285.0,86273.0,0.18112086]
[1769379758037,0.00050708,86285.0,86268.0,0.01159178]
[1769379758238,0.01002008,86285.0,86271.0,0.01159138]
[1769379758465,0.01002008,86285.0,86274.0,0.01159097]
[1769379758679,0.01002008,86285.0,86275.0,0.01159084]
[1769379758883,0.01002008,86285.0,86277.0,0.01159057]
[1769379758884,0.00050708,86285.0,86277.0,0.01159057]
[1769379759089,0.00050708,86285.0,86279.0,0.19271116]
[1769379759289,0.50983872,86300.0,86279.0,0.19271116]
[1769379759290,0.01158748,86300.0,86282.0,1.14695916]
[1769379759453,0.1148524,86299.0,86283.0,0.18112086]
[1769379759652,0.1148524,86298.0,86283.0,0.18112086]
[1769379759871,0.1148524,86297.0,86283.0,0.19271062]
[1769379760024,0.01001501,86300.0,86283.0,0.19271062]
[1769379760835,0.01001501,86300.0,86283.0,0.18112086]
[1769379761030,0.01158735,86301.0,86283.0,0.18112086]
[1769379761330,0.01001501,86297.0,86280.0,0.01159017]
[1769379761530,0.01158788,86297.0,86278.0,0.18112086]
[1769379761745,0.01001501,86296.0,86279.0,0.0115903]
[1769379761922,0.01001501,86296.0,86278.0,0.1927113]
[1769379762336,0.01001501,86296.0,86278.0,0.18112086]
[1769379762537,0.02160316,86295.0,86278.0,0.18112086]
[1769379762981,0.01158829,86294.0,86278.0,0.18112086]
[1769379763198,0.01001501,86294.0,86278.0,0.18112086]
[1769379763402,0.0216033,86294.0,86278.0,0.18112086]
[1769379763607,0.01001501,86294.0,86278.0,0.18112086]
[1769379764015,0.01001501,86294.0,86278.0,1.14695916]
[1769379764217,0.01001501,86294.0,86279.0,0.18112086]
[1769379764625,0.01158842,86293.0,86279.0,0.18112086]
[1769379764832,0.01158882,86290.0,86279.0,0.18112086]
[1769379765038,0.01158896,86289.0,86279.0,0.18112086]
[1769379765257,0.01158882,86290.0,86279.0,0.18112086]
[1769379765704,0.01158882,86290.0,86271.0,0.01159138]
[1769379765705,0.01158896,86289.0,86264.0,0.01159232]
[1769379765916,0.01001501,86278.0,86264.0,0.00014188]
[1769379766121,0.07955773,86278.0,86264.0,0.00014188]
[1769379766326,0.0115907,86276.0,86264.0,0.18126274]
[1769379767168,0.01159138,86271.0,86264.0,0.00014188]
[1769379767376,0.02160639,86271.0,86264.0,0.00014188]
[1769379767659,0.01159097,86274.0,86264.0,0.00014188]
[1769379767854,0.1863429,86275.0,86264.0,0.00114188]
[1769379768063,0.19793374,86275.0,86264.0,0.00114188]
[1769379768447,0.1863429,86275.0,86264.0,0.00014188]
[1769379768648,0.01159003,86281.0,86264.0,0.00114188]
[1769379768799,0.01159003,86281.0,86266.0,1.32808002]
[1769379769511,0.02160504,86281.0,86266.0,1.32808002]
[1769379770042,0.01001501,86270.0,86264.0,0.00114188]
[1769379770272,0.1863429,86270.0,86254.0,0.04600049]
[1769379770478,0.44015307,86290.0,86254.0,0.04600049]
[1769379770479,0.00898471,86266.0,86254.0,0.04600049]
[1769379770724,0.01159218,86265.0,86254.0,0.04600049]
[1769379771052,0.00898471,86263.0,86244.0,0.18112086]
[1769379771195,0.00898471,86260.0,86244.0,0.18112086]
[1769379771807,0.00898471,86260.0,86254.0,0.001]
[1769379772229,0.00898471,86260.0,86244.0,0.18112086]
[1769379772603,0.00898471,86260.0,86244.0,1.32908002]
[1769379772858,0.19793522,86264.0,86244.0,1.32908002]
[1769379772859,0.19532761,86264.0,86245.0,0.19271573]
[1769379773070,0.19532761,86264.0,86247.0,0.18112086]
[1769379773363,0.19532761,86264.0,86247.0,0.19271546]
[1769379773722,8.985e-05,86267.0,86247.0,0.19271546]
[1769379773921,0.08939973,86270.0,86247.0,0.19271546]
[1769379773922,0.03144091,86270.0,86248.0,0.01159447]
[1769379774125,8.985e-05,86267.0,86250.0,0.2029959]
[1769379774750,0.01168176,86267.0,86250.0,0.2029959]
[1769379774949,0.01159164,86269.0,86250.0,0.2029959]
[1769379775169,0.01159164,86269.0,86252.0,0.20074711]
[1769379775789,8.985e-05,86270.0,86252.0,0.20074711]
[1769379775998,0.01168136,86270.0,86253.0,0.20074711]
[1769379776299,0.01159178,86268.0,86253.0,0.20074711]
[1769379776645,0.01159191,86267.0,86253.0,0.20074711]
[1769379776862,0.01159178,86268.0,86253.0,0.20074711]
[1769379777658,8.985e-05,86269.0,86253.0,0.20074711]
[1769379777941,0.01159178,86268.0,86253.0,0.20074711]
[1769379778161,0.01168149,86269.0,86253.0,0.20074711]
[1769379778686,0.0115907,86276.0,86253.0,1.14695916]
[1769379778896,0.01159057,86277.0,86259.0,0.20074711]
[1769379779030,0.0115907,86276.0,86262.0,1.14695916]
[1769379779236,0.01159057,86277.0,86264.0,0.20074711]
[1769379779653,0.01168002,86280.0,86264.0,0.20074711]
[1769379780094,8.985e-05,86280.0,86264.0,0.20074711]
[1769379780297,0.01159003,86281.0,86266.0,0.12900872]
[1769379780501,0.05794883,86284.0,86262.0,0.01159259]
[1769379780502,0.0115899,86282.0,86269.0,1.08895158]
[1769379780716,0.01159017,86280.0,86271.0,0.12311478]
[1769379781656,0.05751735,86284.0,86271.0,0.12311478]
[1769379781863,0.05751735,86284.0,86265.0,1.14695916]
[1769379781864,0.01158936,86286.0,86274.0,1.14695916]
[1769379782065,0.01158923,86287.0,86275.0,0.18112086]
[1769379782615,0.01158896,86289.0,86275.0,0.18112086]
[1769379782780,0.01158923,86287.0,86275.0,0.18112086]
[1769379783188,0.01158896,86289.0,86275.0,0.18112086]
[1769379783383,0.23555735,86291.0,86275.0,0.18112086]
[1769379783628,0.01158923,86287.0,86275.0,0.18112086]
[1769379783839,0.01158909,86288.0,86275.0,0.18112086]
[1769379784046,0.06910631,86289.0,86275.0,0.18112086]
[1769379784252,0.01158869,86291.0,86277.0,0.15691397]
[1769379784453,0.01158869,86291.0,86278.0,0.21491669]
[1769379784454,0.01158882,86290.0,86278.0,0.21491669]
[1769379784657,0.04636,86293.0,86279.0,1.16024996]
[1769379784861,0.04636,86293.0,86280.0,0.15691599]
[1769379784862,0.04650186,86293.0,86280.0,0.15691599]
[1769379785066,0.04650186,86293.0,86280.0,0.09891529]
[1769379785304,0.04650186,86293.0,86280.0,0.06343244]
[1769379786356,0.05809028,86293.0,86280.0,0.06343244]
[1769379787056,0.01158869,86291.0,86280.0,0.06343244]
[1769379787529,0.01158855,86292.0,86280.0,0.06343244]
[1769379787985,0.05809028,86293.0,86280.0,0.06343244]
[1769379788195,0.04650186,86293.0,86280.0,1.2236824]
[1769379788377,0.01158855,86292.0,86280.0,1.2236824]
[1769379788827,0.04650186,86293.0,86280.0,1.16024996]
[1769379788991,0.04650186,86293.0,86282.0,1.37516665]
[1769379789454,0.01158681,86305.0,86284.0,1.16024996]
[1769379789630,0.01158721,86302.0,86287.0,0.21491669]
[1769379789868,0.01158748,86300.0,86288.0,1.16024996]
[1769379790071,0.01158761,86299.0,86288.0,1.16024996]
[1769379790485,0.01158654,86307.0,86289.0,0.21491669]
[1769379790700,0.01158681,86305.0,86293.0,0.21491669]
[1769379790910,0.01158654,86307.0,86293.0,1.37516665]
[1769379791529,0.01158627,86309.0,86293.0,1.37516665]
[1769379791743,0.01158641,86308.0,86293.0,1.37516665]
[1769379791953,0.01158654,86307.0,86293.0,1.37516665]
[1769379792368,0.01158667,86306.0,86293.0,1.37516665]
[1769379792578,0.01158654,86307.0,86293.0,1.37516665]
[1769379792996,0.01158641,86308.0,86293.0,1.37516665]
[1769379793608,0.01158627,86309.0,86293.0,1.37516665]
[1769379793782,0.01158574,86313.0,86293.0,1.16024996]
[1769379793987,0.01158574,86313.0,86295.0,1.37516665]
[1769379793988,0.011586,86311.0,86295.0,1.37516665]
[1769379794144,0.2561885,86321.0,86303.0,1.16024996]
[1769379794350,0.0115848,86320.0,86305.0,1.16024996]
[1769379794652,0.2561885,86321.0,86305.0,1.16024996]
[1769379795055,0.04636,86321.0,86306.0,0.21491669]
[1769379795234,0.04636,86321.0,86309.0,1.16024996]
[1769379795649,0.0466421,86321.0,86309.0,1.16024996]
[1769379795869,0.0466421,86321.0,86305.0,0.01158681]
[1769379795870,0.0466421,86321.0,86311.0,1.166624]
[1769379796075,0.0466421,86321.0,86311.0,1.40837914]
[1769379797098,0.04711486,86321.0,86295.0,1.166624]
[1769379797351,0.01158533,86316.0,86300.0,0.24175514]
[1769379797550,0.0579252,86319.0,86303.0,1.166624]
[1769379797551,0.01158506,86318.0,86303.0,1.166624]
[1769379797896,0.01186716,86318.0,86303.0,1.40837914]
[1769379798027,0.0002821,86318.0,86303.0,1.40837914]
[1769379798223,0.01158547,86315.0,86303.0,0.24175514]
[1769379798636,0.01186757,86315.0,86303.0,0.24175514]
[1769379799240,0.0002821,86315.0,86303.0,0.24175514]
[1769379799448,0.0002821,86315.0,86303.0,1.40837914]
[1769379800014,0.0002821,86315.0,86305.0,1.166624]
[1769379800221,0.0002821,86315.0,86307.0,1.40837914]
[1769379806439,0.0002821,86315.0,86308.0,0.24175514]
[1769379806649,0.0002821,86315.0,86306.0,0.01158667]
[1769379806650,0.0002821,86315.0,86309.0,1.166624]
[1769379808544,0.0002821,86315.0,86309.0,1.40837914]
[1769379808750,0.0002821,86315.0,86309.0,1.41996541]
[1769379808923,0.0002821,86315.0,86307.0,0.06951893]
[1769379808924,0.0002821,86315.0,86312.0,0.24175514]
[1769379809128,0.0002821,86315.0,86312.0,1.40837914]
[1769379809341,0.01756353,86312.0,86269.0,0.46366546]
[1769379809548,0.01756353,86312.0,86299.0,1.40837914]
[1769379809752,0.01756353,86312.0,86298.0,0.05793874]
[1769379809753,0.01784563,86312.0,86301.0,1.40837914]
[1769379810165,0.01784563,86312.0,86302.0,1.40837914]
[1769379810953,0.01784563,86312.0,86299.0,0.01158761]
[1769379810954,0.0002821,86312.0,86304.0,1.166624]
[1769379815652,0.23220923,86321.0,86310.0,1.15959126]
[1769379815653,0.00047276,86321.0,86310.0,1.15959126]
[1769379815853,0.23998777,86327.0,86310.0,1.15959126]
[1769379816054,0.33847058,86326.0,86310.0,1.15959126]
[1769379816416,0.00014174,86327.0,86316.0,0.24843108]
[1769379816535,0.00014174,86327.0,86314.0,0.0115856]
[1769379816536,0.00014174,86327.0,86317.0,1.40802234]
[1769379819058,0.00014174,86327.0,86317.0,0.24843108]
[1769379819277,0.00014174,86327.0,86317.0,1.40802234]
[1769379819700,0.00014174,86327.0,86317.0,1.41960754]
[1769379819921,0.00014174,86327.0,86317.0,1.40802234]
[1769379821676,0.00014174,86327.0,86317.0,1.41960754]
[1769379822022,0.00014174,86327.0,86318.0,0.24843108]
[1769379822191,0.00014174,86327.0,86320.0,1.40802234]
[1769379822545,0.4096201,86340.0,86320.0,1.40802234]
[1769379822546,0.01158198,86341.0,86323.0,0.24843108]
[1769379822750,0.01158198,86341.0,86320.0,0.36329413]
[1769379822751,0.01158225,86339.0,86326.0,1.15959126]
[1769379822953,0.01158211,86340.0,86326.0,1.15959126]
[1769379823596,0.01158238,86338.0,86323.0,0.24843108]
[1769379823723,0.49121594,86340.0,86323.0,0.24843108]
[1769379823929,0.35170933,86340.0,86324.0,1.15959126]
[1769379824129,0.35170933,86340.0,86326.0,1.15959126]
[1769379824983,0.01158211,86340.0,86326.0,1.15959126]
[1769379825417,0.01158211,86340.0,86325.0,0.24843108]
[1769379825625,0.01158238,86338.0,86325.0,0.24843108]
[1769379826300,0.13950675,86339.0,86325.0,0.24843108]
[1769379826704,0.1279245,86339.0,86325.0,0.24843108]
[1769379827496,0.35170933,86340.0,86326.0,1.15959126]
[1769379827633,0.35170933,86340.0,86327.0,1.40802234]
[1769379828913,0.01158238,86338.0,86315.0,0.01158547]
[1769379829116,0.1279245,86334.0,86318.0,0.01158506]
[1769379829312,0.1279245,86334.0,86321.0,0.01158466]
[1769379829712,0.23998777,86335.0,86322.0,0.01158453]
[1769379830128,0.23998777,86335.0,86320.0,0.36329413]
[1769379830329,0.23998777,86335.0,86319.0,1.40802234]
[1769379830479,0.23998777,86335.0,86320.0,0.0115848]
[1769379832126,0.23998777,86335.0,86322.0,0.01158453]
[1769379832338,0.1279245,86339.0,86322.0,1.17117579]
[1769379832904,0.36791227,86339.0,86322.0,1.15959126]
[1769379833042,0.36791227,86339.0,86322.0,1.17117579]
[1769379834664,0.01158238,86338.0,86322.0,1.15959126]
[1769379834868,0.37949452,86339.0,86322.0,1.15959126]
[1769379835082,0.1279245,86338.0,86322.0,1.15959126]
[1769379835506,0.13950688,86338.0,86322.0,1.15959126]
[1769379835729,0.1279245,86338.0,86322.0,1.15959126]
[1769379835945,0.01158251,86337.0,86322.0,1.15959126]
[1769379836151,0.13950701,86337.0,86319.0,0.24843108]
[1769379836581,0.01158265,86336.0,86319.0,1.40802234]
[1769379837256,0.01158319,86332.0,86319.0,1.40802234]
[1769379837680,0.23164893,86338.0,86315.0,0.00014174]
[1769379837681,0.1279245,86327.0,86315.0,0.00014174]
[1769379837887,0.1279245,86327.0,86302.0,0.05790721]
[1769379837888,0.06485347,86355.0,86286.0,0.24872498]
[1769379837889,0.84585054,86305.0,86286.0,0.24872498]
[1769379838109,0.23998777,86300.0,86286.0,0.00076666]
[1769379838781,0.23998777,86300.0,86286.0,0.01235602]
[1769379838988,0.23998777,86300.0,86286.0,1.17194728]
[1769379839212,0.23998777,86300.0,86286.0,1.16035792]
[1769379840107,0.23998777,86300.0,86286.0,0.00076666]
[1769379840108,0.01411281,86295.0,86286.0,0.00076666]
[1769379840318,0.23998777,86294.0,86286.0,0.00076666]
[1769379840520,0.23498777,86294.0,86286.0,0.00076666]
[1769379842023,0.01411281,86300.0,86286.0,0.00076666]
[1769379842271,0.36582214,86300.0,86286.0,0.00076666]
[1769379842515,0.020736,86335.0,86286.0,0.00076666]
[1769379842516,0.01411281,86295.0,86286.0,0.00076666]
[1769379842754,0.35170933,86296.0,86268.0,0.06477432]
[1769379842755,0.01335382,86284.0,86268.0,0.06477432]
[1769379842970,0.01235602,86286.0,86273.0,0.01159111]
[1769379842971,0.00076666,86286.0,86273.0,0.01159111]
[1769379843179,0.25157619,86293.0,86274.0,1.40802234]
[1769379843607,0.25157619,86293.0,86274.0,1.41961331]
[1769379844023,0.23998777,86293.0,86275.0,0.01159084]
[1769379844234,0.23998777,86293.0,86275.0,1.09647578]
[1769379844441,0.01158761,86299.0,86281.0,1.08488494]
[1769379844648,0.01158761,86299.0,86282.0,1.08488494]
[1769379844853,0.28175616,86298.0,86282.0,1.08488494]
[1769379845259,0.28175616,86298.0,86282.0,1.09647484]
[1769379845479,0.28175616,86298.0,86282.0,1.08488494]
[1769379845861,0.28175616,86298.0,86284.0,1.09647457]
[1769379846138,0.28175616,86298.0,86280.0,0.35170933]
[1769379846139,0.01158802,86296.0,86277.0,1.09647551]
[1769379846350,0.01158802,86296.0,86276.0,0.0115907]
[1769379846351,0.28175616,86292.0,86276.0,0.0115907]
[1769379846570,0.28175616,86292.0,86275.0,0.01159084]
[1769379846784,0.01158815,86295.0,86273.0,0.27605734]
[1769379846785,0.01335382,86288.0,86273.0,0.27605734]
[1769379847006,0.29510998,86288.0,86270.0,1.08488494]
[1769379847214,0.01158936,86286.0,86271.0,1.08488494]
[1769379847434,0.29510998,86288.0,86271.0,0.01159138]
[1769379847641,0.29510998,86288.0,86270.0,1.44818578]
[1769379848580,0.29510998,86288.0,86270.0,1.43659427]
[1769379849386,0.29510998,86288.0,86270.0,1.44818578]
[1769379849619,0.29510998,86288.0,86271.0,0.01159138]
[1769379849776,0.29510998,86288.0,86270.0,1.44818578]
[1769379850174,0.29510998,86288.0,86270.0,1.43659427]
[1769379850762,0.29510998,86288.0,86270.0,1.08488494]
[1769379851171,0.29510998,86288.0,86270.0,1.09647645]
[1769379851825,0.29510998,86288.0,86270.0,1.08488494]
[1769379852226,0.30669907,86288.0,86270.0,1.08488494]
[1769379852490,0.30669907,86288.0,86270.0,1.44818578]
[1769379852491,0.29510998,86288.0,86270.0,1.44818578]
[1769379852720,0.28175616,86287.0,86270.0,0.35170933]
[1769379852934,0.02494318,86286.0,86268.0,0.2764931]
[1769379853143,0.28175616,86285.0,86268.0,0.2764931]
[1769379853483,0.01158949,86285.0,86268.0,0.00043576]
[1769379853688,0.28175616,86283.0,86268.0,0.00043576]
[1769379854280,0.28175616,86283.0,86269.0,0.01159164]
[1769379854480,0.28175616,86283.0,86268.0,1.09691248]
[1769379854972,0.28175616,86283.0,86268.0,1.0853207]
[1769379856239,0.28175616,86283.0,86268.0,1.09696568]
[1769379856433,0.28175616,86283.0,86269.0,1.13054024]